[Event "Sardinia World Festival-A 2024"]
[Site "Orosei"]
[Date "2024.05.01"]
[Round "6.16"]
[White "Krishnan, Ritvik"]
[Black "Costa, Leonardo"]
[Result "0-1"]
[ECO "E73"]
[WhiteElo "2277"]
[BlackElo "2476"]
[Annotator "TA"]
[PlyCount "90"]
[EventDate "2024.04.26"]
[EventType "swiss"]
[EventCountry "ITA"]
[SourceTitle "playchess.com"]
[Source "ChessBase"]
[SourceQuality "1"]
[TimeControl "40/5400+30:1800+30"]

{[%evp 14,90,68,70,69,59,51,64,58,53,64,58,61,62,105,93,103,89,99,94,78,61,72,33,35,25,22,22,6,0,202,-7,0,-185,-198,-175,0,0,0,-108,-118,-117,-135,-628,-490,-472,-245,-217,-226,-212,-186,-233,-232,-235,-202,-231,-216,-238,-238,-238,-238,-231,-233,-238,-230,-234,-207,-202,-200,-245,-245,-515,-508,-560,-541,-761,-773,-982,-956]} 1. d4 {[%emt 0:00:02]} Nf6 {[%emt 0:00:05]} 2. c4 {[%emt 0:00:04]} g6 {[%emt 0:00:03]} 3. Nc3 {[%emt 0:00:03]} Bg7 {[%emt 0:00:03]} 4. e4 {[%emt 0:00:03]} d6 {[%emt 0:00:04]} 5. Be2 {[%emt 0:00:02]} O-O {[%emt 0:00:06]} 6. Be3 {[%emt 0:00:02]} e5 {[%emt 0:00:08]} 7. d5 {[%emt 0:00:04]} a5 {[%emt 0:00:33]} 8. g4 {[%emt 0:00:14][%cal Bg2g4,Bg4g5][%mdl 32]} Na6 {[%emt 0:02:15]} 9. g5 {[%emt 0:01:19]} Nd7 {[%emt 0:03:41]} 10. h4 {[%emt 0:00:02][%cal Bh2h4,Bh4h5][%mdl 32]} Ndc5 {[%emt 0:11:09] White is slightly better.} 11. h5 {[%emt 0:03:14]} c6 {[%emt 0:00:34]} 12. Nf3 {[%emt 0:15:06]} a4 {[%emt 0:06:32]} 13. Nd2 {[%emt 0:05:59]} ({Much worse is} 13. Nxa4 Qa5+ 14. Nc3 Nxe4 $11) 13... Qa5 {[%emt 0:00:36]} 14. a3 $1 {[%emt 0:09:38]} Bd7 {[%emt 0:02:08]} 15. Kf1 {[%emt 0:06:15]} cxd5 {[%emt 0:22:16]} 16. cxd5 {[%emt 0:10:30]} b5 {[%emt 0:00:05]} 17. Kg2 {[%emt 0:05:16]} Rfb8 $1 {[%emt 0:00:17]} 18. Rc1 {[%emt 0:05:58]} Qd8 {[%emt 0:05:19]} 19. hxg6 {[%emt 0:04:56]} hxg6 {[%emt 0:12:25]} 20. Rh4 {[%emt 0:01:09]} b4 {[%emt 0:01:14]} 21. axb4 {[%emt 0:00:12]} Rxb4 {[%emt 0:00:04]} (21... Nxb4 $11 22. Nc4 Qe7) 22. Rc2 $2 {[%emt 0:01:46]} (22. Qh1 $18) 22... Rd4 {[%emt 0:05:43][%cal Oa6b4] ...Nb4! is the strong threat.} 23. Qf1 $2 {[%emt 0:05:38]} (23. Qh1 $1 $11 {and White stays safe.}) 23... Nb4 $1 $19 {[%emt 0:00:44]} 24. Rc1 {[%emt 0:00:17][%cal Od2f3] [#]} Nb3 $2 {[%emt 0:12:10]} 25. Nxb3 $11 {[%emt 0:00:59]} axb3 {[%emt 0:00:04]} 26. Rd1 {[%emt 0:04:23] [#]} (26. Rb1 $11 {remains equal.}) 26... Nc2 $1 $36 {[%emt 0:00:18][%mdl 2048] Strongly threatening ...Nxe3+. Black is in control.} 27. Bc1 {[%emt 0:00:31]} Ra1 {[%emt 0:00:03][%cal Oa1c1] Hoping for ...Rxc1! Black has more active pieces.} 28. Rd3 $2 {[%emt 0:00:51][%mdl 8192] This move loses the game for White.} (28. Rh2 $17) 28... Rxd3 {[%emt 0:01:43]} 29. Bxd3 {[%emt 0:00:01] [#]} Ne3+ $1 {[%emt 0:00:05][%mdl 512]} 30. Bxe3 $19 {[%emt 0:00:21]} Rxf1 {[%emt 0:00:04]} 31. Kxf1 {[%emt 0:00:53]} Bf8 {[%emt 0:02:15]} 32. Rh1 {[%emt 0:01:11]} Be7 {[%emt 0:01:57]} 33. Rg1 {[%emt 0:00:02]} Qa5 {[%emt 0:00:28] Threatens to win with ...Qa1+.} 34. Ke2 {[%emt 0:01:22]} Bd8 {[%emt 0:00:41]} 35. Kd2 {[%emt 0:01:43]} Bb6 {[%emt 0:02:26]} 36. Bxb6 {[%emt 0:02:48]} Qxb6 {[%emt 0:00:04]} 37. Ke2 {[%emt 0:00:16]} Qa7 {[%emt 0:00:12]} 38. Bc4 {[%emt 0:01:46]} Kg7 {[%emt 0:01:45]} 39. Bd3 {[%emt 0:00:23]} Qc7 {[%emt 0:03:31]} 40. Rg3 {[%emt 0:01:07]} Qc8 {[%emt 0:00:58]} 41. Rg1 {[%emt 0:35:06]} Qh8 {[%emt 0:35:13]} 42. Ke3 $2 {[%emt 0:07:08]} (42. Bc4 {was called for.}) 42... Qh4 {[%emt 0:00:00] Black is clearly winning.} 43. Ne2 {[%emt 0:00:00] Against Qf4+} Bg4 {[%emt 0:00:00]} 44. f3 {[%emt 0:00:00]} Qxg5+ {[%emt 0:00:00]} 45. f4 {[%emt 0:00:00]} Qh5 {[%emt 0:02:59] Weighted Error Value: White=0.59/Black=0.29 (precise) .  Loses game:     	White=2     	Black=1      Missed win:     	White=1     	Black=1      Mistake:       	White=2     	---        Inaccurate:     	White=2     	Black=1      OK:         	White=9     	Black=12     Best:        	White=2     	Black=1      Strong:       	White=1     	Black=3} 0-1

[Event "Sardinia World Festival-A 2024"]
[Site "Orosei"]
[Date "2024.05.01"]
[Round "6.17"]
[White "Bronstein, Or"]
[Black "Haldorsen, Benjamin"]
[Result "1/2-1/2"]
[ECO "E73"]
[WhiteElo "2458"]
[BlackElo "2419"]
[Annotator "TA"]
[PlyCount "186"]
[EventDate "2024.04.26"]
[EventType "swiss"]
[EventCountry "ITA"]
[SourceTitle "playchess.com"]
[Source "ChessBase"]
[SourceQuality "1"]
[TimeControl "40/5400+30:1800+30"]

{[%evp 126,186,4132,2243,29980,29982,29982,12530,5361,9355,2452,786,2639,2277,1370,1357,29978,29975,29975,29976,29976,29976,29979,29980,29979,0,0,0,0,0,0,0,0,0,0,0,0,0,0,0,0,0,0,0,0,0,0,0,0,0,0,0,0,0,0,0,0,0,0,0,0,0,0]} 1. d4 {[%emt 0:00:02]} Nf6 {[%emt 0:01:01]} 2. c4 {[%emt 0:00:47]} g6 {[%emt 0:00:39]} 3. Nc3 {[%emt 0:00:06]} Bg7 {[%emt 0:00:21]} 4. e4 {[%emt 0:00:06]} d6 {[%emt 0:00:38]} 5. Be2 {[%emt 0:03:43]} O-O {[%emt 0:01:52]} 6. Be3 {[%emt 0:00:14]} a5 {[%emt 0:00:43] E73: King's Indian: Averbakh Variation without 6...c5.} 7. Nf3 {[%emt 0:00:25]} Ng4 {[%emt 0:00:57]} 8. Bg5 {[%emt 0:00:50]} h6 {[%emt 0:00:23]} 9. Bc1 {[%emt 0:07:07]} e5 {[%emt 0:01:41]} 10. h3 {[%emt 0:01:58]} exd4 $146 {[%emt 0:01:46]} ({Predecessor:} 10... Nf6 11. O-O Nbd7 12. Be3 exd4 13. Nxd4 Nc5 14. Qc2 Re8 15. Bf3 Nh7 16. Qd2 Ng5 17. Bxg5 hxg5 {1-0 Woodward,A (2354)-Cabarkapa,N (2466) Novi Sad TS GM 266th 2022 (6)}) 11. Nxd4 {[%emt 0:00:24]} Nf6 {[%emt 0:00:31]} 12. Be3 {[%emt 0:02:48]} Re8 {[%emt 0:00:17]} 13. f3 {[%emt 0:01:46]} Nh5 {[%emt 0:09:29]} 14. g4 {[%emt 0:02:54]} Ng3 {[%emt 0:00:17]} 15. Rg1 {[%emt 0:00:21]} Nxe2 {[%emt 0:03:02]} 16. Qxe2 {[%emt 0:00:43]} a4 {[%emt 0:04:54]} 17. O-O-O {[%emt 0:20:24]} a3 {[%emt 0:17:22]} 18. b3 {[%emt 0:00:43]} Nc6 {[%emt 0:02:03]} 19. Qd2 {[%emt 0:02:10]} Kh7 {[%emt 0:02:58]} 20. h4 {[%emt 0:11:04]} Ne5 {[%emt 0:05:45]} 21. Rgf1 {[%emt 0:00:58]} Bd7 {[%emt 0:02:00]} 22. g5 {[%emt 0:00:42]} h5 {[%emt 0:00:44]} 23. Nde2 {[%emt 0:09:30]} Bc6 {[%emt 0:08:22]} 24. Bd4 {[%emt 0:01:30]} Nd7 {[%emt 0:10:32]} 25. Rf2 {[%emt 0:13:37]} Nc5 {[%emt 0:01:34]} 26. Nf4 {[%emt 0:00:09]} Rb8 {[%emt 0:08:52]} 27. Bxg7 {[%emt 0:01:50]} Kxg7 {[%emt 0:00:01]} 28. b4 {[%emt 0:02:22]} Ne6 {[%emt 0:02:05]} 29. b5 {[%emt 0:01:06]} Nxf4 {[%emt 0:04:02]} 30. Qxf4 {[%emt 0:00:23]} Bd7 {[%emt 0:00:25]} 31. Nd5 {[%emt 0:07:28]} c6 {[%emt 0:05:02]} 32. Nf6 {[%emt 0:01:47]} Re6 {[%emt 0:00:06]} 33. Rxd6 {[%emt 0:02:07]} Qa5 {[%emt 0:03:07]} 34. Qd2 {[%emt 0:00:33]} Qxd2+ {[%emt 0:01:04]} 35. Rdxd2 {[%emt 0:00:35]} Be8 {[%emt 0:00:30]} 36. b6 {[%emt 0:01:03]} c5 {[%emt 0:00:51]} 37. Rd3 {[%emt 0:00:22]} Rxb6 {[%emt 0:00:18]} 38. Rfd2 {[%emt 0:00:06]} Rxf6 {[%emt 0:02:39]} 39. gxf6+ {[%emt 0:00:01]} Kxf6 {[%emt 0:00:07]} 40. Rxa3 {[%emt 0:01:21]} Bc6 {[%emt 0:00:23]} 41. Ra5 {[%emt 0:32:38]} Ke5 {[%emt 0:01:50]} 42. Rxc5+ {[%emt 0:00:00]} Kf4 {[%emt 0:00:39]} 43. Rg5 {[%emt 0:00:00]} Kxf3 {[%emt 0:00:58]} 44. e5 {[%emt 0:00:00]} Be4 {[%emt 0:03:15]} 45. Rd7 {[%emt 0:00:00]} Rc8 {[%emt 0:00:21]} 46. Kd2 {[%emt 0:00:00]} Rf8 {[%emt 0:01:34]} 47. Rg1 {[%emt 0:00:00]} Kf2 {[%emt 0:03:28]} 48. Re1 {[%emt 0:00:00]} Bc6 {[%emt 0:01:12]} 49. Rd3 {[%emt 0:00:00]} Bf3 {[%emt 0:03:19]} 50. Ree3 {[%emt 0:00:00]} Bg4 {[%emt 0:00:52]} 51. Re4 {[%emt 0:00:00]} Kg2 {[%emt 0:01:25]} 52. Kc3 {[%emt 0:02:16]} Ra8 {[%emt 0:02:32]} 53. Kb2 {[%emt 0:00:19]} Re8 {[%emt 0:01:50]} 54. Ree3 {[%emt 0:03:15]} Kf2 {[%emt 0:01:47]} 55. Rc3 {[%emt 0:00:21]} Re6 {[%emt 0:03:19]} 56. c5 {[%emt 0:00:35]} g5 {[%emt 0:04:59]} 57. hxg5 {[%emt 0:00:23]} Rg6 {[%emt 0:00:19]} 58. Red3 {[%emt 0:02:01]} Rxg5 {[%emt 0:00:32]} 59. Rc2+ {[%emt 0:00:20]} Ke1 {[%emt 0:01:57]} 60. Re3+ {[%emt 0:00:02]} Kf1 {[%emt 0:01:18]} 61. Rb3 {[%emt 0:01:22]} Rxe5 {[%emt 0:02:59]} 62. Rxb7 {[%emt 0:00:13]} f5 {[%emt 0:01:05]} 63. Rb4 {[%emt 0:01:10]} Re4 {[%emt 0:00:30]} 64. Rbc4 {[%emt 0:00:36]} Be2 {[%emt 0:00:31]} 65. Rxe4 {[%emt 0:00:36]} fxe4 {[%emt 0:00:08]} 66. Rc3 {[%emt 0:00:42]} (66. Rxe2 $142 Kxe2 67. c6 Kf2 68. c7 e3 69. c8=Q (69. c8=R e2 $11) 69... e2 70. Qf5+ Kg3 71. Qe5+ (71. Qxh5 e1=Q $14) 71... Kf2 72. Qf4+ (72. Qxh5 e1=Q 73. Qh4+ Kf1 74. Qxe1+ Kxe1 75. Kc3 Kf2 76. Kd4 Kg3) 72... Kg2 73. Qe3) 66... Ba6 $18 {[%emt 0:01:28]} 67. Re3 {[%emt 0:00:31]} Bb7 {[%emt 0:00:00]} 68. Kc2 {[%emt 0:00:25]} (68. Rb3 $142 Ba8 69. Rh3) 68... Kg2 {[%emt 0:00:22] [#]} 69. Rb3 $1 {[%emt 0:00:35]} Bd5 {[%emt 0:00:06]} 70. Rb6 {[%emt 0:00:30]} h4 {[%emt 0:00:06]} 71. Rg6+ {[%emt 0:00:27]} Kf2 {[%emt 0:00:24]} 72. Rf6+ {[%emt 0:00:23]} Kg2 {[%emt 0:00:16]} 73. Rd6 {[%emt 0:00:39]} Bb7 {[%emt 0:01:08]} 74. c6 {[%emt 0:00:20]} Bc8 {[%emt 0:00:06]} 75. Kd2 $2 {[%emt 0:00:37]} (75. Rd8 {mates} Bf5 76. Rg8+ Kf3 77. Rf8 Kg4 78. Rxf5 (78. c7 Be6 79. c8=Q Bxc8 80. Rxc8 h3 81. Rh8 Kg3 82. a4 h2) 78... Kxf5 79. c7 Kg5 80. c8=Q (80. c8=R Kf5 81. a4 Ke6 82. a5 Kd7 83. Rc3 h3 84. Rxh3 Kc6 85. Rh6+ Kc7)) 75... h3 $11 {[%emt 0:00:15]} 76. Ke3 {[%emt 0:00:21]} h2 {[%emt 0:00:23]} 77. Rd2+ {[%emt 0:00:31]} (77. Kxe4 h1=Q (77... h1=R 78. Rd2+ Kg3 79. Kd5 $16) 78. Kd5 Qh5+ 79. Kd4 Qb5 $19) 77... Kg3 {[%emt 0:00:38]} 78. Rd1 {[%emt 0:00:33]} (78. Kxe4 h1=Q+ (78... h1=R 79. Kd5 $14) 79. Kd4 Qxc6 80. Rd3+ Kf4 (80... Kf2 {is a self mate.} 81. a3 Qd6+ 82. Kc3 Qc5+ 83. Kb2 Ke2 84. Rd8 Be6 85. Re8 Qb5+ 86. Kc2 Qxe8 87. Kc3 Qc6+ 88. Kb4 Qb6+ 89. Kc3 Qb3+ 90. Kd4 Qe3#) 81. Rc3 Qe4+ 82. Kc5 Be6 83. Kb5 Ke5 (83... Bxa2 84. Rc5 Be6 85. Ka5 Qd3 86. Rh5 Qd8+ 87. Kb4 Qd2+ 88. Kc5 Qa5+ 89. Kd6 Qxh5 90. Kxe6 Qc5 91. Kf6 Qe5+ 92. Kf7 Kg5 93. Kg8 Kf6 94. Kh7 Qc7+ 95. Kh8 Qg7#) 84. Rc1 Qe2+ (84... Bxa2 85. Rg1 Qb7+ 86. Kc5 Qa7+ 87. Kb5 Qxg1 88. Kc6 Bc4 89. Kc7 Qc5+ 90. Kb7 Kd6 91. Kb8 Qc7+ 92. Ka8 Bd5#) 85. Kc6 Qa6+ (85... Qxa2 86. Re1+ Kf6 87. Rf1+ Ke7 88. Rg1 Qd5+ 89. Kb6 Qd4+ 90. Ka5 Qxg1 91. Kb4 Qc1 92. Kb5 Kd6 93. Ka6 Qc5 94. Kb7 Qc7+ 95. Ka8 Bd5#) 86. Kc5 Qa3+ (86... Bxa2 87. Re1+ Kf5 88. Kd4 Qc4+ 89. Ke3 Qc3+ 90. Ke2 Bd5 91. Rf1+ Ke4 92. Rf8 Qb2+ 93. Kf1 Kd3 94. Rg8 Qe2+ 95. Kg1 Bxg8 96. Kh1 Bd5+ 97. Kg1 Qg2#) 87. Kc6 Qxc1+ 88. Kb7 Kd6 (88... Bxa2 89. Kb6 Kd6 90. Ka5 Kc6 91. Kb4 Qc4+ 92. Ka5 Qb5#) 89. Ka6 Qc6+ (89... Bxa2 90. Ka5 Qb2 91. Ka4 Kc6 92. Ka5 Qb5#) 90. Ka5 Kc5 91. a4 Qb6#) 78... Kg2 {[%emt 0:01:40]} 79. Kxe4 {[%emt 0:00:13]} Bg4 {[%emt 0:00:28]} 80. Rd2+ {[%emt 0:00:40]} Kg3 {[%emt 0:00:05]} 81. Rxh2 $1 {[%emt 0:00:05]} Kxh2 {[%emt 0:00:06]} 82. a4 {[%emt 0:00:45]} Kg3 {[%emt 0:00:05]} 83. Kd5 {[%emt 0:00:34]} Kf4 {[%emt 0:00:30]} 84. a5 {[%emt 0:00:32]} Bc8 {[%emt 0:00:38]} 85. Kd6 {[%emt 0:00:49]} Ke4 {[%emt 0:00:06]} 86. c7 {[%emt 0:00:33]} Kd4 {[%emt 0:00:11]} 87. Kc6 {[%emt 0:00:09]} Ke5 {[%emt 0:00:06]} 88. Kc5 {[%emt 0:00:30]} Ke6 {[%emt 0:00:06]} 89. Kc6 {[%emt 0:00:09]} Ke5 {[%emt 0:00:06]} 90. Kb5 {[%emt 0:00:21]} (90. Kb6 $5 Kd6 $8 91. a6 Bxa6 92. Kxa6 Kxc7 $11) 90... Kd6 {[%emt 0:00:05]} 91. Kb6 {[%emt 0:00:01]} Kd7 {[%emt 0:00:06]} 92. a6 {[%emt 0:00:04]} Bxa6 $1 {[%emt 0:00:04]} 93. Kxa6 {[%emt 0:00:04]} Kxc7 {[%emt 0:00:41]} 1/2-1/2

[Event "Sardinia World Festival-A 2024"]
[Site "Orosei"]
[Date "2024.05.01"]
[Round "6.18"]
[White "Huschenbeth, Niclas"]
[Black "Assylov, Miras"]
[Result "1-0"]
[ECO "C50"]
[WhiteElo "2607"]
[BlackElo "2342"]
[Annotator "TA"]
[PlyCount "59"]
[EventDate "2024.04.26"]
[EventType "swiss"]
[EventCountry "ITA"]
[SourceTitle "playchess.com"]
[Source "ChessBase"]
[SourceQuality "1"]
[TimeControl "40/5400+30:1800+30"]

{[%evp 10,59,22,15,31,0,15,9,18,14,9,7,13,14,9,0,3,4,15,9,25,18,20,30,36,32,31,31,146,170,156,158,148,151,218,218,304,260,348,344,338,312,573,553,614,639,609,602,1190,1050,29975,6179]} 1. e4 {[%emt 1:31:00]} e5 {[%emt 0:00:11]} 2. Nf3 {[%emt 0:00:00]} Nc6 {[%emt 0:00:11]} 3. Bc4 {[%emt 0:00:00]} Bc5 {[%emt 0:00:28]} 4. d3 {[%emt 0:00:00]} Nf6 {[%emt 0:00:37]} 5. a4 {[%emt 0:00:00]} d6 {[%emt 0:03:27]} 6. O-O {[%emt 0:00:00]} a6 {[%emt 0:02:52]} 7. Be3 {[%emt 0:00:00]} h6 {[%emt 0:17:51]} 8. Nbd2 {[%emt 0:00:00]} O-O {[%emt 0:14:09] The position is equal.} 9. a5 {[%emt 0:00:00]} Re8 {[%emt 0:13:26]} 10. c3 {[%emt 0:00:00]} Bxe3 {[%emt 0:04:53]} 11. fxe3 {[%emt 0:00:00]} Be6 {[%emt 0:00:18]} 12. Bxe6 {[%emt 0:00:00]} Rxe6 {[%emt 0:01:40]} 13. Qe2 {[%emt 0:00:00]} d5 {[%emt 0:03:59]} 14. exd5 {[%emt 0:00:00]} Qxd5 {[%emt 0:00:28][%cal Oe5e4]} 15. e4 {[%emt 0:00:00]} Qc5+ {[%emt 0:06:05]} 16. Kh1 {[%emt 0:00:00]} Rd8 {[%emt 0:04:21]} 17. Nc4 {[%emt 0:00:00] Dodges Red6} Qb5 {[%emt 0:03:50]} 18. b4 {[%emt 0:00:00][%cal Bb2b4,Bb4c5][%mdl 32]} Ne7 {[%emt 0:00:43] [#]} ({Black should play} 18... Na7 $14) 19. Ncxe5 $1 $16 {[%emt 0:00:00]} c5 {[%emt 0:08:19]} (19... Rxe5 20. c4) 20. c4 $36 {[%emt 0:00:00][%mdl 2048] White has strong initiative.} Qe8 {[%emt 0:01:30]} 21. bxc5 {[%emt 0:00:00]} Nc6 {[%emt 0:03:33]} (21... Nd7 $16 22. Nxd7 Rxd7) 22. Nxc6 $18 {[%emt 0:00:00]} Rxc6 {[%emt 0:00:43]} 23. Rab1 {[%emt 0:00:00]} Qe7 {[%emt 0:01:47]} 24. e5 {[%emt 0:00:00]} Rxc5 {[%emt 0:00:47]} 25. d4 {[%emt 0:00:00][%cal Bd3d4,Bd4d5,Bd5d6][%mdl 32]} Rc7 {[%emt 0:01:13]} (25... Rc6 26. Nh4 g6 (26... Rxd4 $2 {is the wrong capture.} 27. Nf5 $18)) 26. Nh4 {[%emt 0:00:31]} Ne8 {[%emt 0:05:05]} 27. Nf5 {[%emt 0:00:22]} Qa3 {[%emt 0:00:26]} 28. d5 {[%emt 0:01:53] [#] d6 is the strong threat.} Qxa5 {[%emt 0:00:39]} 29. d6 {[%emt 0:00:11]} Rc5 {[%emt 0:00:38]} 30. Ne7+ {[%emt 0:00:30] Weighted Error Value: White=0.04 (flawless) /Black=0.64.  Mistake:       	---       	Black=3      Inaccurate:     	White=1     	Black=2      OK:         	White=9     	Black=8      Best:        	White=3     	Black=1      Strong:       	White=1     	---} ({Weaker is} 30. Rxb7 Rxe5 31. Qd3 Nxd6 32. Nxd6 Re6 $18) (30. Nxh6+ $142 Kh7 31. Nxf7 Rxe5 32. Nxe5 Kg8 33. Rxb7 Nxd6 34. Rxg7+ Kxg7 35. Qg4+ Kh8 36. Ng6+ (36. Nc6 Qa1 37. Rxa1 Rg8 38. Qd4+ Kh7 39. Rf1 Re8 40. Qxd6 Kg7 41. Qd7+ Kg8) 36... Kh7 37. Ne7) 1-0

[Event "Sardinia World Festival-A 2024"]
[Site "Orosei"]
[Date "2024.05.01"]
[Round "6.19"]
[White "Hercegovac, Neven"]
[Black "Samunenkov, Ihor"]
[Result "1/2-1/2"]
[ECO "B48"]
[WhiteElo "2344"]
[BlackElo "2548"]
[Annotator "TA"]
[PlyCount "61"]
[EventDate "2024.04.26"]
[EventType "swiss"]
[EventCountry "ITA"]
[SourceTitle "playchess.com"]
[Source "ChessBase"]
[SourceQuality "1"]
[TimeControl "40/5400+30:1800+30"]

{[%evp 13,61,22,18,16,30,18,16,28,41,4,26,21,26,6,8,0,0,0,0,0,0,0,0,0,0,0,0,0,0,0,0,0,0,0,0,0,0,0,0,0,0,0,0,0,0,0,0,0,0,0]} 1. e4 {[%emt 0:06:15]} c5 {[%emt 0:00:13]} 2. Nf3 {[%emt 0:01:36]} e6 {[%emt 0:00:10]} 3. d4 {[%emt 0:00:04]} cxd4 {[%emt 0:00:05]} 4. Nxd4 {[%emt 0:00:04]} Nc6 {[%emt 0:00:09]} 5. Nc3 {[%emt 0:00:05]} Qc7 {[%emt 0:00:07]} 6. Be3 {[%emt 0:00:05]} a6 {[%emt 0:00:09]} 7. Qd2 {[%emt 0:00:05]} Nf6 {[%emt 0:00:11]} 8. f4 {[%emt 0:00:05]} Bb4 {[%emt 0:00:18] [#] aiming for ...Nxe4.} 9. Bd3 {[%emt 0:00:05]} b5 {[%emt 0:00:13]} 10. a3 {[%emt 0:00:28]} Be7 {[%emt 0:00:31]} 11. e5 {[%emt 0:00:25]} Ng4 {[%emt 0:00:17]} 12. Nxc6 {[%emt 0:00:33]} dxc6 {[%emt 0:00:10]} 13. Bg1 {[%emt 0:00:09]} O-O {[%emt 0:00:35] The position is equal.} 14. h3 {[%emt 0:00:38]} Nh6 $1 {[%emt 0:01:42]} 15. g4 {[%emt 0:00:28]} Bb7 {[%emt 0:02:32]} 16. O-O-O {[%emt 0:02:16]} c5 {[%emt 0:00:14]} 17. Be4 {[%emt 0:14:11]} Rfd8 {[%emt 0:22:11] Inhibits Qd7.} 18. Qg2 {[%emt 0:06:33]} b4 {[%emt 0:22:32]} 19. Rxd8+ {[%emt 0:05:34]} Rxd8 {[%emt 0:00:12]} 20. Nb1 {[%emt 0:00:32]} (20. Bxb7 $2 bxc3 21. bxc3 Qa5 $19) 20... bxa3 {[%emt 0:24:30]} 21. Nxa3 {[%emt 0:14:03]} (21. Bxb7 $2 {loses.} a2 22. Be3 a1=Q $19 (22... a1=B 23. Qc6 $16)) 21... Qa5 {[%emt 0:06:07][%cal Ra5e1] [#]} 22. Be3 $1 {[%emt 0:05:23]} c4 $1 {[%emt 0:01:22]} 23. Nb1 {[%emt 0:00:49] Prevents c3} (23. Bxb7 $2 Bxa3 24. Qc6 Bc5 $19) 23... c3 $1 {[%emt 0:10:49]} 24. Nxc3 {[%emt 0:02:21]} (24. Bxb7 $2 Qa1 $19) 24... Ba3 $1 {[%emt 0:01:19]} 25. Rd1 {[%emt 0:17:24] And now Rxd8+ would win.} (25. Bxb7 $2 {too greedy.} Qxc3 $19) 25... Bxb2+ {[%emt 0:05:25]} 26. Kxb2 {[%emt 0:00:02] Threatens to win with Rxd8+.} Qb4+ {[%emt 0:00:14]} 27. Kc1 {[%emt 0:02:01]} Qa3+ {[%emt 0:00:45]} 28. Kb1 {[%emt 0:00:01]} Qb4+ {[%emt 0:00:51]} 29. Kc1 {[%emt 0:00:14]} Qa3+ {[%emt 0:00:19]} 30. Kb1 {[%emt 0:00:05]} Qb4+ {[%emt 0:00:38]} 31. Kc1 {[%emt 0:00:36] An even fight not without its subleties.   Weighted Error Value: White=0.03 (flawless) /Black=0.00 (flawless) .  Inaccurate:     	White=1     	---        OK:         	White=9     	Black=12     Best:        	White=2     	Black=3      Strong:       	White=1     	Black=4} 1/2-1/2

[Event "Sardinia World Festival-A 2024"]
[Site "Orosei"]
[Date "2024.05.01"]
[Round "6.20"]
[White "Girel, Joseph"]
[Black "Kaczmarek, Aleksander"]
[Result "1-0"]
[ECO "B92"]
[WhiteElo "2479"]
[BlackElo "2362"]
[Annotator "RC"]
[PlyCount "85"]
[EventDate "2024.04.26"]
[EventType "swiss"]
[EventCountry "ITA"]
[SourceTitle "playchess.com"]
[Source "ChessBase"]
[SourceQuality "1"]
[TimeControl "40/5400+30:1800+30"]

1. e4 {[%emt 0:00:09]} c5 {[%emt 0:00:20]} 2. Nf3 {[%emt 0:00:14]} d6 {[%emt 0:00:13]} 3. d4 {[%emt 0:00:24]} cxd4 {[%emt 0:00:04]} 4. Nxd4 {[%emt 0:00:08]} Nf6 {[%emt 0:00:04]} 5. Nc3 {[%emt 0:00:09]} a6 {[%emt 0:00:05]} 6. Be2 {[%emt 0:02:01]} e5 {[%emt 0:02:18]} 7. Nb3 {[%emt 0:00:09]} Be7 {[%emt 0:00:06]} 8. O-O {[%emt 0:00:29]} O-O {[%emt 0:00:17]} 9. Qd3 {[%emt 0:00:08]} Be6 {[%emt 0:02:22]} 10. Bd2 {[%emt 0:00:11]} Re8 {[%emt 0:01:59]} 11. Rfd1 {[%emt 0:06:21]} Bf8 {[%emt 0:01:14]} 12. Nd5 {[%emt 0:07:19]} Nxd5 {[%emt 0:04:33]} 13. exd5 {[%emt 0:00:13]} Bc8 {[%emt 0:00:06]} 14. Na5 {[%emt 0:11:41]} Nd7 {[%emt 0:06:20]} 15. b4 {[%emt 0:01:14]} g6 {[%emt 0:02:54]} 16. c4 {[%emt 0:01:28]} f5 {[%emt 0:03:59]} 17. Rac1 {[%emt 0:01:30]} f4 {[%emt 0:01:46]} 18. Bg4 {[%emt 0:04:55]} Nf6 {[%emt 0:17:23]} 19. Bxc8 {[%emt 0:02:19]} Rxc8 {[%emt 0:00:07]} 20. Nxb7 {[%emt 0:01:34]} Qd7 {[%emt 0:18:13]} 21. Na5 {[%emt 0:00:25]} e4 {[%emt 0:00:03]} 22. Qe2 {[%emt 0:15:05]} Bh6 {[%emt 0:07:27]} 23. Nc6 {[%emt 0:07:32]} f3 {[%emt 0:11:53]} 24. gxf3 {[%emt 0:08:46]} Bxd2 {[%emt 0:00:06]} 25. Rxd2 {[%emt 0:00:16]} Qh3 {[%emt 0:00:38]} 26. Nd4 {[%emt 0:08:21]} Nxd5 {[%emt 0:12:51]} 27. fxe4 {[%emt 0:00:03]} Nf4 {[%emt 0:00:18]} 28. Qf1 {[%emt 0:00:53]} Qh6 {[%emt 0:01:31]} 29. Kh1 {[%emt 0:02:32]} Rxe4 {[%emt 0:00:20]} 30. c5 {[%emt 0:04:27]} dxc5 {[%emt 0:00:52]} 31. bxc5 {[%emt 0:00:07]} Rce8 {[%emt 0:02:48]} 32. Rdd1 {[%emt 0:08:45]} Qh5 {[%emt 0:00:40]} 33. Qc4+ {[%emt 0:00:13]} Kf8 {[%emt 0:01:12]} 34. Qc3 {[%emt 0:01:08]} Qg5 {[%emt 0:01:51]} 35. Qf3 {[%emt 0:01:04]} Kg8 {[%emt 0:00:16]} 36. c6 {[%emt 0:01:26]} Qe5 {[%emt 0:00:17]} 37. Qb3+ {[%emt 0:00:27]} Kf8 {[%emt 0:00:39]} 38. Nf3 {[%emt 0:00:16]} Qf5 {[%emt 0:00:27]} 39. c7 {[%emt 0:01:24]} Qh3 {[%emt 0:00:50]} 40. Rg1 {[%emt 0:01:22]} Ne2 {[%emt 0:00:29]} 41. Ng5 {[%emt 0:31:12]} Qxb3 {[%emt 0:04:49]} 42. axb3 {[%emt 0:00:00]} Nxc1 {[%emt 0:00:35]} 43. Nxe4 {[%emt 0:00:00]} 1-0